bitfinex-derivatives/quotes_SOLF0:USTF0_20250823
["timestamp","ask_amount","ask_price","bid_price","bid_amount"]
[1755960160242,4.9357,202.68,202.6,7.5174]
[1755960160438,4.9357,202.68,202.61,4.62588184]
[1755960160647,4.9357,202.68,202.62,4.62588184]
[1755960160842,4.9357,202.68,202.6,7.5174]
[1755960161044,4.9357,202.68,202.61,4.62484327]
[1755960161243,4.9357,202.68,202.62,4.62484327]
[1755960161444,4.936,202.67,202.6,2.58]
[1755960161643,4.936,202.67,202.61,4.62448211]
[1755960161845,4.936,202.67,202.6,2.58]
[1755960162046,4.936,202.67,202.61,4.62516646]
[1755960162351,4.936,202.67,202.6,2.58]
[1755960162545,4.936,202.67,202.61,4.62444061]
[1755960162750,4.936,202.67,202.6,2.58]
[1755960162951,4.936,202.67,202.61,4.62444061]
[1755960163149,4.9362,202.66,202.57,2.58]
[1755960163344,4.9362,202.66,202.58,4.62526473]
[1755960163551,4.9362,202.66,202.57,2.58]
[1755960163850,4.9362,202.66,202.58,4.62526473]
[1755960164050,4.9362,202.66,202.59,4.6251431]
[1755960164252,4.9362,202.66,202.57,2.58]
[1755960164550,4.9362,202.66,202.58,4.62481867]
[1755960164751,91.0,202.65,202.59,4.62481867]
[1755960164953,91.0,202.65,202.57,2.58]
[1755960165152,7.98423044,202.67,202.53,4.9391]
[1755960165153,91.0,202.64,202.53,4.9391]
[1755960165353,91.0,202.63,202.54,10.34495899]
[1755960165554,91.0,202.63,202.55,4.62657498]
[1755960165752,91.0,202.63,202.56,4.62657498]
[1755960166052,91.0,202.63,202.53,4.9391]
[1755960166248,91.0,202.63,202.54,10.34812476]
[1755960166442,91.0,202.63,202.55,4.62813002]
[1755960166646,4.9374,202.61,202.56,4.62813002]
[1755960166847,4.9374,202.61,202.53,4.9391]
[1755960167047,4.9374,202.61,202.54,10.35016112]
[1755960167247,4.9374,202.61,202.55,4.6286191]
[1755960167450,4.9374,202.61,202.56,4.6286191]
[1755960167659,4.9374,202.61,202.53,4.9391]
[1755960167855,4.9374,202.61,202.54,6.21772391]
[1755960168054,4.9374,202.61,202.53,4.9391]
[1755960168055,4.9377,202.6,202.55,4.63022386]
[1755960168257,4.9377,202.6,202.53,4.9391]
[1755960168557,4.9377,202.6,202.54,4.63103344]
[1755960168857,4.9377,202.6,202.55,4.63103344]
[1755960169058,4.9377,202.6,202.53,4.9391]
[1755960169257,4.9377,202.6,202.54,8.77956062]
[1755960169454,4.9381,202.58,202.52,2.58]
[1755960169652,4.9381,202.58,202.53,8.78157475]
[1755960169853,4.9381,202.58,202.54,4.63284731]
[1755960170050,4.9381,202.58,202.51,123.94]
[1755960170051,4.9384,202.57,202.51,123.94]
[1755960170251,4.9384,202.57,202.52,4.6346998]
[1755960170453,4.9384,202.57,202.51,123.94]
[1755960170454,4.9384,202.57,202.53,4.6346998]
[1755960170651,4.9384,202.57,202.49,7.5202]
[1755960170854,4.9384,202.57,202.5,10.37458484]
[1755960171056,4.9384,202.57,202.51,10.37458484]
[1755960171257,4.9384,202.57,202.49,7.5202]
[1755960171258,4.9384,202.57,202.52,4.63480148]
[1755960171559,4.9384,202.57,202.53,4.63480148]
[1755960171762,4.9384,202.57,202.5,4.9399]
[1755960171965,4.9384,202.57,202.51,10.37719743]
[1755960172159,4.9384,202.57,202.52,4.63587741]
[1755960172358,4.9384,202.57,202.53,4.63587741]
[1755960172660,4.9384,202.57,202.5,4.9399]
[1755960172861,4.9384,202.57,202.51,4.15222501]
[1755960173065,4.9379,202.59,202.52,8.78834327]
[1755960173262,4.9379,202.59,202.53,4.63611826]
[1755960173560,4.9379,202.59,202.5,4.9399]
[1755960173763,91.0,202.58,202.51,10.37940221]
[1755960173964,91.0,202.58,202.52,10.37940221]
[1755960174160,91.0,202.58,202.53,4.63670957]
[1755960174463,91.0,202.58,202.5,4.9399]
[1755960174667,91.0,202.58,202.51,10.38101844]
[1755960174963,91.0,202.58,202.52,10.38101844]
[1755960175165,91.0,202.58,202.5,4.9399]
[1755960175166,95.9382,202.58,202.53,4.63740461]
[1755960175466,95.9382,202.58,202.5,4.9399]
[1755960175666,95.9382,202.58,202.51,10.38257341]
[1755960175861,95.9382,202.58,202.52,10.38257341]
[1755960176160,95.9382,202.58,202.53,4.63807362]
[1755960176359,95.9382,202.58,202.54,4.63859745]
[1755960176564,95.9382,202.58,202.5,4.9399]
[1755960176765,4.9384,202.57,202.51,10.38384737]
[1755960176964,4.9384,202.57,202.52,10.38384737]
[1755960177264,4.9384,202.57,202.53,4.63859746]
[1755960177464,4.9384,202.57,202.54,4.63859746]
[1755960177664,4.9384,202.57,202.5,4.9399]
[1755960177859,4.9384,202.57,202.51,10.38467007]
[1755960178057,4.9384,202.57,202.52,10.38467007]
[1755960178257,4.9384,202.57,202.5,4.9399]
[1755960178258,4.9384,202.57,202.53,4.63891728]
[1755960178469,4.9384,202.57,202.5,4.9399]
[1755960178764,91.0,202.58,202.51,10.3862592]
[1755960178765,4.9387,202.56,202.51,10.3862592]
[1755960178965,4.9387,202.56,202.52,8.7954568]
[1755960179167,4.9387,202.56,202.53,4.63960125]
[1755960179368,4.9387,202.56,202.5,4.9399]
[1755960179564,4.9387,202.56,202.51,12.96798149]
[1755960179763,4.9387,202.56,202.52,10.38798149]
[1755960180062,4.9387,202.56,202.53,4.64024042]
[1755960180368,91.0,202.55,202.47,2.58]
[1755960180561,91.0,202.55,202.49,2.58]
[1755960180763,91.0,202.55,202.5,10.39066262]
[1755960180957,91.0,202.55,202.46,4.10803325]
[1755960180958,91.0,202.55,202.46,2.58]
[1755960181163,91.0,202.54,202.47,10.39293509]
[1755960181370,7.98423044,202.64,202.49,2.58]
[1755960181564,148.4851,202.63,202.52,2.58]
[1755960181867,148.4851,202.63,202.48,4.6428219]
[1755960181868,7.98423044,202.6,202.48,2.58]
[1755960182064,7.98423044,202.6,202.49,10.39136083]
[1755960182265,4.9387,202.56,202.5,10.39136083]
[1755960182459,123.82,202.55,202.48,2.58]
[1755960182661,123.82,202.55,202.49,10.39278577]
[1755960182964,7.98423044,202.56,202.44,2.58]
[1755960183166,123.88,202.55,202.45,10.39641513]
[1755960183361,123.88,202.55,202.46,10.39641513]
[1755960183564,123.88,202.54,202.47,4.64487035]
[1755960183867,123.88,202.54,202.48,4.64487035]
[1755960184060,123.88,202.54,202.44,2.58]
[1755960184368,123.88,202.54,202.45,10.39676098]
[1755960184564,4.9399,202.51,202.46,10.39676098]
[1755960184769,4.9399,202.51,202.47,4.64525947]
[1755960185067,4.9399,202.51,202.48,4.64525947]
[1755960185265,4.9399,202.51,202.44,7.5214]
[1755960185568,4.9394,202.53,202.45,15.33262994]
[1755960185864,4.9358,202.68,202.54,2.55]
[1755960186068,126.56,202.7,202.55,10.38307184]
[1755960186367,126.78,202.69,202.58,4.9379]
[1755960186670,4.9358,202.68,202.59,6.22751502]
[1755960186864,4.9358,202.68,202.58,4.9379]
[1755960186865,4.9358,202.68,202.6,4.63798493]
[1755960187069,4.9358,202.68,202.61,4.63798493]
[1755960187271,126.78,202.69,202.62,4.63560436]
[1755960187469,126.72,202.69,202.6,7.4874]
[1755960187670,126.72,202.69,202.61,4.63594584]
[1755960187865,4.9347,202.72,202.63,2.55]
[1755960188070,126.68,202.71,202.64,4.63594584]
[1755960188265,126.68,202.71,202.63,2.55]
[1755960188465,126.68,202.71,202.64,4.63435455]
[1755960188668,126.68,202.71,202.63,2.55]
[1755960188969,126.68,202.71,202.64,4.63439903]
[1755960189163,126.68,202.71,202.63,2.55]
[1755960189368,126.68,202.71,202.64,4.63408444]
[1755960189670,126.68,202.71,202.63,7.4867]
[1755960189870,126.68,202.71,202.64,4.63493737]
[1755960190175,126.68,202.71,202.63,7.4867]
[1755960190473,126.68,202.71,202.64,4.63454281]
[1755960190669,126.68,202.71,202.65,4.63454281]
[1755960190874,126.56,202.7,202.63,7.4867]
[1755960191066,131.4952,202.7,202.64,4.63763229]
[1755960191273,126.56,202.7,202.57,2.55]
[1755960191466,126.56,202.7,202.58,6.24419085]
[1755960191665,126.56,202.7,202.59,4.64126599]
[1755960191866,126.56,202.7,202.6,4.64126599]
[1755960192067,4.9366,202.65,202.57,2.55]
[1755960192275,32.66973044,202.63,202.47,4.10803325]
[1755960192576,126.4,202.62,202.48,5.75651792]
[1755960192767,24.6872,202.61,202.49,5.75651792]
[1755960192968,24.6872,202.61,202.5,5.75651792]
[1755960193169,126.4,202.6,202.51,1.60683418]
[1755960193366,126.4,202.6,202.52,1.60683418]
[1755960193567,4.9385,202.57,202.49,2.55]
[1755960193768,4.9385,202.57,202.5,5.75985621]
[1755960193970,4.9385,202.57,202.51,1.60791219]
[1755960194170,4.9385,202.57,202.52,1.60791219]
[1755960194474,4.9385,202.57,202.49,2.55]
[1755960194674,4.9385,202.57,202.5,5.75888635]
[1755960194873,4.9385,202.57,202.51,1.60760569]
[1755960195170,4.9385,202.57,202.52,1.60760569]
[1755960195470,32.67383044,202.59,202.45,2.55]
[1755960195666,32.67383044,202.59,202.46,5.75950432]
[1755960195869,24.6909,202.58,202.47,5.75950432]
[1755960196166,24.6909,202.58,202.45,2.55]
[1755960196167,24.6909,202.58,202.48,5.75950432]
[1755960196368,24.6826,202.65,202.5,2.55]
[1755960196568,7.98423044,202.62,202.51,5.75803766]
[1755960196768,24.6875,202.61,202.46,2.55]
[1755960196967,7.98423044,202.59,202.47,4.15100294]
[1755960197175,32.67173044,202.61,202.48,5.75832277]
[1755960197372,32.67173044,202.61,202.45,4.9411]
[1755960197373,91.0,202.6,202.49,8.30832277]
[1755960197574,4.9381,202.58,202.5,1.60731983]
[1755960197774,131.2581,202.58,202.51,1.60731983]
[1755960197971,131.2581,202.58,202.52,1.60731983]
[1755960198171,131.2581,202.58,202.49,2.55]
[1755960198373,131.2581,202.58,202.5,5.76743953]
[1755960198573,131.2581,202.58,202.49,2.55]
[1755960198574,131.2581,202.58,202.51,1.60710928]
[1755960198876,131.2581,202.58,202.52,1.60710928]
[1755960199077,126.32,202.58,202.49,7.4903]
[1755960199370,126.32,202.58,202.5,5.76786469]
[1755960199570,126.32,202.58,202.51,1.60720248]
[1755960199868,126.22,202.58,202.52,1.60720248]
[1755960200074,126.22,202.58,202.46,4.9408]
[1755960200375,126.22,202.58,202.47,5.77156047]
[1755960200575,4.939,202.55,202.48,1.60815464]
[1755960200774,4.939,202.55,202.49,1.60819051]
[1755960201074,4.939,202.55,202.45,2.55]
[1755960201275,91.0,202.54,202.46,4.16337799]
[1755960201574,91.0,202.53,202.41,2.55]
[1755960201774,217.14,202.52,202.42,4.16490572]
[1755960201967,217.14,202.52,202.43,4.16490572]
[1755960202164,217.14,202.52,202.41,2.55]
[1755960202369,4.94,202.51,202.42,4.16337711]
[1755960202565,4.94,202.51,202.43,4.16337711]
[1755960202765,4.94,202.51,202.44,1.60904136]
[1755960203076,217.14,202.52,202.44,4.15904136]
[1755960203373,91.0,202.52,202.44,4.15904136]
[1755960203574,126.08,202.51,202.44,2.55]
[1755960203767,126.08,202.51,202.45,4.16195751]
[1755960203969,126.08,202.51,202.44,2.55]
[1755960204166,126.08,202.51,202.45,4.16187227]
[1755960204371,126.08,202.51,202.44,2.55]
[1755960204968,131.0198,202.51,202.44,2.55]
[1755960205779,4.9402,202.5,202.42,2.55]
[1755960206075,24.6862,202.62,202.44,2.55]
[1755960206280,4.9387,202.56,202.45,4.16289251]
[1755960206482,125.98,202.55,202.46,4.16289251]
[1755960206671,125.98,202.55,202.47,4.16289251]
[1755960206875,125.98,202.55,202.46,4.9409]
[1755960207075,125.98,202.55,202.47,10.271757]
[1755960207381,125.98,202.55,202.48,6.11068144]
[1755960207576,125.94,202.54,202.49,6.11068144]
[1755960207880,125.94,202.54,202.5,4.50170896]
[1755960208083,125.94,202.54,202.46,4.9409]
[1755960208378,125.94,202.54,202.47,10.272849]
[1755960208580,125.94,202.54,202.48,6.111072]
[1755960208782,125.94,202.54,202.49,6.111072]
[1755960208975,125.94,202.54,202.5,4.50202889]
[1755960209174,125.94,202.54,202.47,4.9406]
[1755960209479,125.82,202.53,202.48,6.10937083]
[1755960209678,125.82,202.53,202.49,6.10937083]
[1755960209878,125.82,202.53,202.47,4.9406]
[1755960210077,125.82,202.53,202.48,6.11036739]
[1755960210282,125.82,202.53,202.49,4.50149985]
[1755960210476,125.82,202.53,202.45,4.9412]
[1755960210678,125.82,202.53,202.46,10.27117235]
[1755960210880,125.82,202.53,202.47,6.10950344]
[1755960211182,125.82,202.53,202.48,6.10950344]
[1755960211380,125.82,202.53,202.49,4.5008633]
[1755960211580,125.82,202.53,202.45,4.9412]
[1755960211875,125.82,202.53,202.46,10.26866572]
[1755960212080,125.82,202.53,202.47,6.10781338]
[1755960212279,125.82,202.53,202.48,6.10781338]
[1755960212480,125.82,202.53,202.45,4.9412]
[1755960212680,125.82,202.53,202.46,10.26685981]
[1755960212881,125.82,202.53,202.47,6.1065496]
[1755960213082,125.82,202.53,202.48,6.1065496]
[1755960213386,125.82,202.53,202.49,6.10606104]
[1755960213579,125.64,202.53,202.46,7.7708]
[1755960213781,125.64,202.53,202.47,10.26519369]
[1755960213981,125.64,202.53,202.48,6.10537435]
[1755960214183,125.64,202.53,202.49,6.10537435]
[1755960214491,125.64,202.53,202.47,4.9406]
[1755960214791,125.64,202.53,202.48,4.49756118]
[1755960214985,125.64,202.53,202.43,2.83]
[1755960215286,4.9397,202.52,202.44,15.2082448]
[1755960215587,4.9397,202.52,202.45,10.2669448]
[1755960215781,4.9397,202.52,202.46,6.1054665]
[1755960215981,4.9397,202.52,202.47,6.1054665]
[1755960216186,4.9397,202.52,202.48,4.49763365]
[1755960216386,4.9397,202.52,202.44,4.9413]
[1755960216593,4.9397,202.52,202.45,10.26473892]
[1755960216784,4.9397,202.52,202.46,6.10473]
[1755960216985,4.9397,202.52,202.47,6.10473]
[1755960217289,4.9397,202.52,202.44,4.9413]
[1755960217489,4.9397,202.52,202.45,10.26410279]
[1755960217789,130.3399,202.51,202.46,6.10422107]
[1755960217990,130.3399,202.51,202.47,6.10422107]
[1755960218290,130.3399,202.51,202.44,4.9413]
[1755960218492,130.3399,202.51,202.45,10.26235218]
[1755960218792,130.3399,202.51,202.46,6.10311074]
[1755960218988,130.3399,202.51,202.47,4.49612992]
[1755960219184,130.3399,202.51,202.44,4.9413]
[1755960219386,130.3399,202.51,202.45,10.26293101]
[1755960219689,130.3399,202.51,202.46,6.10339134]
[1755960219890,130.3399,202.51,202.47,4.49633298]
[1755960220092,130.3399,202.51,202.44,4.9413]
[1755960220392,130.3399,202.51,202.45,10.26219291]
[1755960220591,130.3399,202.51,202.46,6.10280035]
[1755960220792,130.3399,202.51,202.44,4.9413]
[1755960220983,4.9399,202.51,202.45,10.26153627]
[1755960221186,91.0,202.58,202.47,2.83]
[1755960221391,216.22,202.58,202.48,10.26043996]
[1755960221590,216.22,202.58,202.49,6.10233051]
[1755960221888,115.6909,202.58,202.47,2.83]
[1755960222093,125.76,202.57,202.48,10.2182391]
[1755960222287,125.76,202.57,202.49,6.06015836]
[1755960222489,4.9392,202.54,202.5,4.45391724]
[1755960222687,4.9392,202.54,202.48,4.9404]
[1755960222989,4.9392,202.54,202.49,8.88973505]
[1755960223189,4.9392,202.54,202.5,6.05989076]
[1755960223390,125.76,202.55,202.49,2.83]
[1755960223586,125.7,202.55,202.5,4.45361565]
[1755960223790,125.7,202.55,202.49,7.7701]
[1755960223992,125.66,202.55,202.5,8.88970499]
[1755960224187,125.66,202.55,202.5,2.83]
[1755960224391,4.9387,202.56,202.5,2.83]
[1755960224591,125.64,202.55,202.5,2.83]
[1755960225092,130.559,202.55,202.47,4.9407]
[1755960225397,125.58,202.54,202.48,10.21863787]
[1755960225596,125.58,202.54,202.49,6.06062841]
[1755960225794,125.56,202.54,202.45,2.83]
[1755960225994,125.56,202.54,202.46,10.21917875]
[1755960226193,125.54,202.54,202.47,10.21917875]
[1755960226395,130.459,202.55,202.48,10.21917875]
[1755960226595,130.459,202.55,202.49,6.06063512]
[1755960226897,125.52,202.54,202.48,4.9404]
[1755960227097,125.52,202.54,202.49,6.06055604]
[1755960227300,125.52,202.54,202.49,2.83]
[1755960228699,4.939,202.55,202.5,6.06069572]
[1755960228894,4.939,202.55,202.49,7.7701]
[1755960229198,130.319,202.55,202.5,8.89068341]
[1755960229399,130.319,202.55,202.5,2.83]
[1755960229894,4.939,202.55,202.5,2.83]
[1755960230089,130.279,202.55,202.5,2.83]
[1755960231095,331.9,202.64,202.51,6.06044848]
[1755960231399,125.28,202.63,202.52,13.04404636]
[1755960231601,125.28,202.63,202.53,6.0603314]
[1755960231795,331.9,202.64,202.54,4.45347186]
[1755960231994,125.32,202.63,202.52,2.83]
[1755960232302,125.32,202.63,202.53,6.05955091]
[1755960232494,4.9377,202.6,202.54,4.9389]
[1755960232692,7.99063211,202.58,202.47,4.10212247]
[1755960232901,125.28,202.57,202.48,6.0671875]
[1755960233103,125.28,202.57,202.42,6.93212247]
[1755960233394,125.28,202.57,202.44,2.83]
[1755960233600,125.74,202.56,202.45,10.22917104]
[1755960233801,125.74,202.56,202.46,10.22917104]
[1755960233995,125.74,202.56,202.44,2.83]
[1755960233996,125.74,202.56,202.47,10.22917104]
[1755960234197,125.74,202.56,202.48,4.15858661]
[1755960234393,125.74,202.56,202.49,6.07472274]
[1755960234697,125.74,202.56,202.5,4.46460115]
[1755960234898,4.9396,202.52,202.44,7.7713]
[1755960235098,4.9396,202.52,202.45,10.2277846]
[1755960235398,4.9396,202.52,202.46,10.2277846]
[1755960235593,4.9396,202.52,202.47,10.2277846]
[1755960235900,4.9396,202.52,202.48,10.2277846]
[1755960236100,4.9396,202.52,202.45,2.83]
[1755960236101,4.9396,202.52,202.49,10.2277846]
[1755960236303,4.9396,202.52,202.5,10.23619947]
[1755960236504,4.9396,202.52,202.51,6.07566064]
[1755960237399,4.9396,202.52,202.51,1.61034718]
[1755960237605,4.9396,202.52,202.51,6.08935137]
[1755960240401,24.6846,202.63,202.51,13.08094392]
[1755960240704,4.9382,202.58,202.52,10.25094392]
[1755960240902,125.46,202.62,202.53,10.25094392]
[1755960241100,125.46,202.62,202.49,4.10212247]
[1755960241101,24.6885,202.6,202.54,10.25094392]
[1755960241312,24.6885,202.6,202.46,2.83]
[1755960241313,7.99063211,202.6,202.46,2.83]
[1755960241503,24.6871,202.61,202.44,4.9413]
[1755960241504,7.99063211,202.63,202.48,2.83]
[1755960241705,125.46,202.62,202.49,10.25846948]
[1755960241902,7.99063211,202.63,202.5,10.25846948]
[1755960242208,125.68,202.65,202.52,2.83]
[1755960242408,32.67393211,202.64,202.53,10.25846948]
[1755960242703,4.9381,202.58,202.54,4.16289202]
[1755960242908,24.6848,202.63,202.55,6.09026756]
[1755960242909,24.6858,202.62,202.55,6.09026756]
[1755960243107,24.6858,202.62,202.47,6.93212247]
[1755960243108,125.84,202.59,202.47,6.93212247]
[1755960243312,125.84,202.59,202.48,10.24012407]
[1755960243511,4.9393,202.54,202.49,10.24012407]
[1755960243808,4.9393,202.54,202.5,10.24012407]
[1755960244012,4.9393,202.54,202.51,10.24012407]
[1755960244312,4.9393,202.54,202.52,10.24012407]
[1755960244511,4.9393,202.54,202.53,6.09198454]
[1755960245414,4.9386,202.56,202.53,6.09198454]
[1755960245711,125.76,202.57,202.48,2.65]
[1755960245911,125.76,202.57,202.49,8.70301129]
[1755960246112,4.939,202.55,202.5,10.31874431]
[1755960246308,4.939,202.55,202.51,10.31874431]
[1755960246508,4.939,202.55,202.52,6.16790253]
[1755960246711,4.939,202.55,202.53,6.16790253]
[1755960246913,24.6848,202.63,202.54,8.81736241]
[1755960247106,125.68,202.58,202.55,6.16736241]
[1755960247311,91.0,202.58,202.56,6.16736241]
[1755960247508,91.0,202.58,202.57,6.16736241]
[1755960248006,125.66,202.6,202.57,4.55216951]
[1755960248211,32.67383211,202.64,202.58,4.54640374]
[1755960248413,125.62,202.63,202.53,2.65]
[1755960248611,125.62,202.63,202.54,10.30386159]
[1755960248810,125.62,202.63,202.53,2.65]
[1755960248811,125.62,202.63,202.55,12.95386159]
[1755960249013,125.62,202.63,202.56,6.15876471]
[1755960249213,125.6,202.63,202.57,6.15876471]
[1755960249415,125.6,202.63,202.58,4.54553013]
[1755960249614,130.537,202.63,202.55,2.65]
[1755960249816,130.537,202.63,202.56,10.29743562]
[1755960250014,125.56,202.64,202.58,2.65]
[1755960250220,125.56,202.65,202.6,2.65]
[1755960250430,125.56,202.65,202.61,2.65]
[1755960251419,457.56,202.66,202.62,2.65]
[1755960251725,125.52,202.66,202.63,4.53831454]
[1755960252016,125.52,202.66,202.64,4.53831454]
[1755960252215,125.52,202.66,202.62,2.65]
[1755960252417,125.52,202.66,202.63,4.61087066]
[1755960252613,125.44,202.67,202.61,4.9373]
[1755960252810,125.44,202.67,202.62,4.60818253]
[1755960253113,125.44,202.67,202.63,4.60818253]
[1755960253309,125.44,202.67,202.62,2.65]
[1755960253519,125.44,202.67,202.63,7.25577707]
[1755960253724,125.44,202.67,202.63,2.65]
[1755960254112,95.9354,202.7,202.64,4.60519987]
[1755960254113,125.4,202.68,202.64,4.60519987]
[1755960254426,125.4,202.68,202.61,7.5873]
[1755960254613,125.4,202.68,202.64,2.65]
[1755960254815,125.4,202.68,202.65,2.65]
[1755960255024,216.34,202.7,202.64,2.65]
[1755960255222,91.0,202.7,202.65,6.20221784]
[1755960255417,91.0,202.7,202.67,2.65]
[1755960255617,7.99063211,202.86,202.69,2.65]
[1755960255823,126.0,202.85,202.72,2.65]
[1755960256024,126.0,202.84,202.73,6.19670292]
[1755960256225,126.0,202.84,202.72,2.65]
[1755960256423,4.932,202.83,202.74,4.9339]
[1755960257823,24.6533,202.89,202.75,7.5837]
[1755960258028,125.92,202.88,202.76,4.65575197]
[1755960258329,125.92,202.88,202.75,7.5837]
[1755960258529,125.92,202.88,202.76,4.64851799]
[1755960258829,125.92,202.88,202.75,7.5837]
[1755960259029,125.92,202.88,202.76,4.648491]
[1755960259227,24.6553,202.87,202.71,2.65]
[1755960259527,24.6553,202.87,202.72,4.64338279]
[1755960259725,24.6553,202.87,202.73,4.64338279]
[1755960259924,24.6553,202.87,202.71,2.65]
[1755960260234,24.6553,202.87,202.72,4.64278828]
[1755960260432,4.9324,202.82,202.73,4.64278828]
[1755960260625,4.9324,202.82,202.71,7.5849]
[1755960260825,4.9324,202.82,202.73,2.65]
[1755960261733,4.9317,202.85,202.74,4.63524714]
[1755960261921,4.9317,202.85,202.75,2.65]
[1755960262124,125.74,202.85,202.75,2.65]
[1755960262631,4.932,202.84,202.75,2.65]
[1755960263333,4.9323,202.82,202.75,2.65]
[1755960264634,4.9327,202.81,202.7,2.65]
[1755960264827,4.9327,202.81,202.71,4.62812796]
[1755960265027,4.9327,202.81,202.72,4.62812796]
[1755960265225,4.9327,202.81,202.7,2.65]
[1755960265535,91.0,202.8,202.71,4.6265789]
[1755960265832,91.0,202.8,202.7,2.65]
[1755960266023,91.0,202.8,202.71,4.62673767]
[1755960266228,91.0,202.8,202.7,7.5849]
[1755960266537,91.0,202.8,202.71,4.62491217]
[1755960266729,91.0,202.8,202.7,2.65]
[1755960266925,91.0,202.8,202.72,4.9344]
[1755960267131,91.0,202.8,202.7,2.65]
[1755960267836,95.9329,202.8,202.71,4.9347]
[1755960268229,95.9329,202.8,202.7,2.65]
[1755960268433,95.9329,202.8,202.72,2.65]
[1755960268730,91.0,202.8,202.72,7.5845]
[1755960269131,95.9329,202.8,202.72,2.65]
[1755960269437,91.0,202.8,202.67,2.65]
[1755960269627,4.9339,202.76,202.68,4.62524861]
[1755960269828,91.0,202.8,202.63,2.65]
[1755960270033,91.0,202.8,202.64,4.62684701]
[1755960270234,4.9344,202.73,202.65,4.62684701]
[1755960270535,4.9344,202.73,202.63,2.65]
[1755960270736,4.9344,202.73,202.64,4.62710378]
[1755960270932,91.0,202.79,202.66,2.65]
[1755960271135,216.4,202.79,202.66,2.65]
[1755960271534,4.9339,202.76,202.66,2.65]
[1755960271939,241.0652,202.79,202.66,2.65]
[1755960272740,4.9341,202.75,202.66,7.5861]
[1755960273342,4.9343,202.74,202.66,7.5861]
[1755960273546,241.0652,202.79,202.66,2.65]
[1755960275245,241.0652,202.79,202.67,4.9357]
[1755960275848,4.9341,202.75,202.67,4.9357]
[1755960276649,4.9341,202.75,202.63,24.6843]
[1755960276650,4.9335,202.77,202.7,4.9351]
[1755960277146,91.0,202.76,202.7,4.9351]
[1755960277757,95.9339,202.76,202.69,2.65]
[1755960278343,4.934,202.75,202.65,4.9361]
[1755960278652,91.0,202.76,202.66,8.72037225]
[1755960278844,4.9343,202.74,202.67,4.62903814]
[1755960279048,4.9343,202.74,202.64,2.65]
[1755960279351,4.9343,202.74,202.65,8.72222456]
[1755960279546,4.9343,202.74,202.66,4.6300236]
[1755960279742,4.9343,202.74,202.67,4.6300236]
[1755960280050,4.9343,202.74,202.64,2.65]
[1755960280258,24.6591,202.84,202.67,10.62221901]
[1755960280555,125.06,202.82,202.68,4.63201869]
[1755960280756,4.9336,202.77,202.69,4.63201869]
[1755960281059,24.6628,202.81,202.7,4.63201869]
[1755960281256,24.6628,202.81,202.68,4.9356]
[1755960281257,4.9341,202.75,202.67,2.65]
[1755960281450,32.63501901,202.81,202.67,2.65]
[1755960281451,24.6628,202.81,202.68,4.6337178]
[1755960281651,24.6628,202.81,202.69,4.6337178]
[1755960281958,4.933,202.79,202.7,9.58339782]
[1755960282250,149.7215,202.82,202.71,4.64839782]
[1755960282455,149.7215,202.82,202.7,4.935]
[1755960282657,149.7215,202.82,202.71,4.65030984]
[1755960282857,149.7215,202.82,202.7,4.935]
[1755960283056,149.7215,202.82,202.71,4.65030984]
[1755960283257,149.7215,202.82,202.72,4.6520906]
[1755960283460,149.7215,202.82,202.7,4.935]